{"text_format":"3","workbook":"xlsx","n_sheets":2,"sheets":["岗位一览表","Sheet1"],"not_rendered":{"defined_names":4},"read":"whole","date_system":"1900"}

{"sheet":"岗位一览表","index":0,"n_rows":11,"n_cols":19,"rows_kept":11,"merged":[[1,0,1,18],[2,0,3,0],[2,1,3,1],[2,2,3,2],[2,3,2,4],[2,5,3,5],[2,6,3,6],[2,7,3,7],[2,8,3,9],[2,10,3,10],[2,11,3,11],[2,12,3,12],[2,13,2,17]]}
["附件1"]
["美姑县2024年上半年公开考试招聘小学教师岗位和条件要求一览表"]
["主管部门   名   称","序号","单位名称","招聘岗位",null,"岗位编码","招聘人数","笔试开考比例","笔试科目",null,"笔试面试成绩各占比  例","面试入围比例","招聘对象    范围","其他条件要求"]
[{"$nulls":3},"岗位  类别","岗位  名称",{"$nulls":8},"年  龄","学习形式","学历或学位","专业条件要求","其他","备   注"]
["美姑县教育体育和科学技术局","1","美姑县小学","专业技术","小学音乐教师","19080101",11,"3:1","《教育公共基础》","选考《彝语文》","60:40","2:1","面向社会非在编在职人员","35周岁及以下","国民教育","大学本科（学士）及以上","本科：音乐学、音乐教育、音乐表演、音乐表演、艺术教育、音乐与舞蹈学、教育学；\n研究生：音乐与舞蹈学；","具有小学及以上教师资格证"]
["美姑县教育体育和科学技术局","2","美姑县小学","专业技术","小学音乐教师","1904010201",2,"3:1","《教育公共基础》","选考《彝语文》","60:40","2:1","面向社会非在编在职人员","35周岁及以下","国民教育","大学专科及以上学历","专科：音乐教育、音乐表演、舞蹈表演、表演艺术；                 本科：音乐学、音乐教育、音乐表演、音乐表演、艺术教育、音乐与舞蹈学、教育学；\n研究生：音乐与舞蹈学；","具有小学及以上教师资格证"]
["美姑县教育体育和科学技术局","3","美姑县小学","专业技术","小学体育教师","1908010301",10,"3:1","《教育公共基础》","选考《彝语文》","60:40","2:1","面向社会非在编在职人员","35周岁及以下","国民教育","大学本科（学士）及以上","本科：体育教育、运动训练、 社会体育指导与管理、武术与民族传统体育、运动人体科学、运动康复、休闲体育、体能训练、冰雪运动、 电子竞技运动与管理、智能体育工程、体育旅游、运动能力开发；\n研究生：体育人文社会学、运动人体科学、体育教育训练学、民族传统体育学；","具有小学及以上教师资格证"]
["美姑县教育体育和科学技术局","4","美姑县小学","专业技术","小学美术教师","1908010401",10,"3:1","《教育公共基础》","选考《彝语文》","60:40","2:1","面向社会非在编在职人员","35周岁及以下","国民教育","大学本科（学士）及以上","本科：美术学、美术教育、绘画、雕塑、中国画、油画 、版画、壁画、书法学、环境设计、漫画、动画、教育学；\n研究生：美术学；","具有小学及以上教师资格证"]
["美姑县教育体育和科学技术局","5","美姑县小学","专业技术","小学心理健康教师",1908010601,4,"3:1","《教育公共基础》","选考《彝语文》","60:40","2:1","面向美姑县非在编在职人员","35周岁及以下","国民教育","大学本科（学士）及以上","本科：医学类专业、心理学、应用心理学；\n研究生：专业不限。","具有小学及以上心理健康教师资格证或者心理咨询师证"]
["美姑县教育体育和科学技术局","6","美姑县小学","专业技术","小学心理健康教师",1908010601,3,"3:1","《教育公共基础》","选考《彝语文》","60:40","2:1","面向美姑县非在编在职人员","35周岁及以下","国民教育","大学专科（学士）及以上","专科：医学类专业、心理咨询、心理健康教育、初等教育；           本科：医学类专业、心理学、应用心理学；\n研究生：专业不限。","具有小学及以上心理健康教师资格证或者心理咨询师证"]
["合计","6",{"$nulls":4},40]

{"sheet":"Sheet1","index":1,"n_rows":42,"n_cols":7,"rows_kept":42,"merged":[[0,0,0,6],[1,0,2,0],[1,1,2,1],[1,2,1,5],[1,6,2,6],[41,0,41,1]]}
["美姑县2024年上半年公开考试招聘中小学教师岗位表"]
["序号","学校","学科",{"$nulls":3},"合计"]
[null,null,"音乐","体育","美术","心理健康教师"]
[1,"美姑县城关小学",1,null,1,null,{"$f":"SUM(C4:F4)","v":2}]
[2,"美姑县瓦候乡小学校",1,{"$nulls":3},1]
[3,"美姑县瓦候乡树窝小学校",{"$nulls":4},0]
[4,"美姑县洪溪镇小学校",null,1,null,1,2]
[5,"美姑县洪溪镇瓦西小学校",null,null,1,null,1]
[6,"美姑县洒库乡小学校",1,1,null,1,3]
[7,"美姑县峨曲古乡小学校",null,1,1,null,2]
[8,"美姑县峨曲古乡炳途小学校",{"$nulls":4},0]
[9,"美姑县觉洛乡拖木小学校",{"$nulls":4},0]
[10,"美姑县龙门乡小学校",1,1,null,null,2]
[11,"美姑县俄普小学校",{"$nulls":4},0]
[12,"美姑县觉洛乡小学校",1,{"$nulls":3},1]
[13,"美姑县巴普镇巴古小学校",{"$nulls":4},0]
[14,"美姑县巴普镇农作小学校",{"$nulls":4},0]
[15,"美姑县合姑洛乡小学校",{"$nulls":4},0]
[16,"美姑县井叶特西乡小学校",{"$nulls":4},0]
[17,"美姑县新桥镇小学校",{"$nulls":3},1,1]
[18,"美姑县新桥镇子威小学校",{"$nulls":4},0]
[19,"姑县典补乡哈洛小学校",{"$nulls":4},0]
[20,"美姑县典补乡小学校",{"$nulls":4},0]
[21,"美姑县新桥镇依洛拉达小学校",{"$nulls":4},0]
[22,"美姑县牛牛坝镇小学校",1,null,1,1,3]
[23,"美姑县候古莫镇小学校",1,null,1,null,2]
[24,"美姑县牛牛坝镇竹库小学校",{"$nulls":4},0]
[25,"美姑县牛牛坝镇尔合小学校",{"$nulls":4},0]
[26,"美姑县候播乃拖镇小学校",1,1,null,1,3]
[27,"美姑县候古莫镇采红小学校",{"$nulls":4},0]
[28,"美姑县候播乃拖镇苏洛小学校",{"$nulls":4},0]
[29,"美姑县洛俄依甘乡小学校",1,2,1,null,4]
[30,"美姑县拉马镇小学校",1,null,1,1,3]
[31,"美姑县九口乡小学校",null,2,null,null,2]
[32,"美姑县拉马镇洛莫依达小学校",{"$nulls":4},0]
[33,"美姑县柳洪乡龙头小学校",null,1,null,null,1]
[34,"美姑县拉马镇尔其小学校",{"$nulls":4},0]
[35,"美姑县拉马镇瓦古小学校",{"$nulls":4},0]
[36,"美姑县柳洪乡小学校",1,null,1,null,2]
[37,"美姑县巴普镇小学校",1,null,1,1,3]
[38,"美姑县牛牛坝镇兴荣小学校",1,null,1,null,2]
["合  计",null,{"$f":"SUM(C4:C41)","v":13},{"$f":"SUM(D4:D41)","v":10},{"$f":"SUM(E4:E41)","v":10},{"$f":"SUM(F4:F41)","v":7},40]